lending/lending_fUSD_20240110
["ID","MTS","AMOUNT","RATE_DAILY","PERIOD"]
[311076396,1704897038721,-8214.19572842,0.00022998,2]
[311076397,1704897038733,-8511.00849389,0.00022998,2]
[311076398,1704897038743,-299.1474797,0.00022998,2]
[311076399,1704897038752,-212.12326525,0.00022998,2]
[311076400,1704897038762,-701.93510545,0.00022998,2]
[311076401,1704897038771,-4937.99503625,0.00022998,2]
[311076402,1704897038781,-155.0,0.00022998,2]
[311076403,1704897038791,-2149.20238571,0.00022998,2]
[311076404,1704897038801,-161.677758,0.00022998,2]
[311076406,1704897038810,-214.71676808,0.00022998,2]
[311076408,1704897038819,-1423.92909811,0.00022998,2]
[311076410,1704897038829,-465.75529,0.00022998,2]
[311076412,1704897038838,-727.17,0.00022999,2]
[311076414,1704897038847,-3290.92677058,0.00022999,2]
[311076416,1704897038859,-150.0,0.00022999,2]
[311076418,1704897038869,-195.62237414,0.00022999,2]
[311076420,1704897038879,-760.0,0.00023,2]
[311076422,1704897038888,-55056.74427349,0.00023,2]
[311076424,1704897038901,-764.65,0.00023,2]
[311076427,1704897038914,-285.7904402,0.00023,2]
[311076429,1704897038929,-1969.855545,0.00023,2]
[311076432,1704897038942,-22646.25195346,0.00023,2]
[311076434,1704897038953,-696.66443536,0.00023,2]
[311076436,1704897038965,-4931.59097331,0.00023,2]
[311076438,1704897038976,-63560.2553525,0.00023,2]
[311076441,1704897038992,-454.09900648,0.00023,2]
[311076443,1704897039004,-17185.27775339,0.00023,2]
[311076446,1704897039023,-325.99655922,0.00023,2]
[311076449,1704897039035,-275.96458678,0.00023,2]
[311076639,1704897040782,-203.07724,0.00022657,2]
[311076641,1704897040792,-477.94993481,0.00023,2]
[311076708,1704897041418,-541.86350039,0.00022999,2]
[311076710,1704897041427,-2316.14851916,0.00022999,2]
[311076712,1704897041437,-187610.13027192,0.00023,2]
[311076713,1704897041483,-262.79677064,0.00023,2]
[311076714,1704897041495,-834.0703922,0.00023,2]
[311076715,1704897041506,-564.34471712,0.00023,2]
[311076716,1704897041517,-6911.48332296,0.00023,2]
[311076717,1704897041528,-268.53642835,0.00023,2]
[311076722,1704897041561,-1254.66100132,0.00023,2]
[311076724,1704897041573,-1768.97282519,0.00023,2]
[311076726,1704897041584,-806.13027767,0.00023,2]
[311076917,1704897043328,-1821.83093812,0.00023,2]
[311076920,1704897043340,-755.20132475,0.00023,2]
[311076926,1704897043394,-5509.98913518,0.00023,2]
[311076929,1704897043404,-3464.26580277,0.00023,2]
[311076969,1704897043780,-155.49966614,0.00022999,2]
[311076972,1704897043794,-11239.24103386,0.00023,2]
[311076974,1704897043806,-16680.10385786,0.00023,2]
[311076976,1704897043818,-11290.1501,0.00023,2]
[311076982,1704897043865,-2685.81552317,0.00023,2]
[311076985,1704897043877,-1271.53918342,0.00023,2]
[311076987,1704897043889,-262.0,0.00023,2]
[311076989,1704897043901,-17932.50594029,0.00023,2]
[311076991,1704897043913,-1734.03922036,0.00023,2]
[311076994,1704897043925,-1558.93318069,0.00023,2]
[311076996,1704897043937,-5036.76559982,0.00023,2]
[311077258,1704897046316,-391.67611145,0.00022999,2]
[311077265,1704897046379,-560.77890443,0.00022999,2]
[311077268,1704897046391,-531.75291488,0.00022999,2]
[311077270,1704897046404,-3162.51446924,0.00022999,2]
[311077272,1704897046415,-1910.0088786,0.00022999,2]
[311077274,1704897046425,-15555.9760626,0.00023,2]
[311077277,1704897046437,-13557.8955837,0.00023,2]
[311077279,1704897046449,-1643.50928459,0.00023,2]
[311077281,1704897046461,-2356.43045917,0.00023,2]
[311077287,1704897046504,-11268.6,0.00023,2]
[311077289,1704897046516,-2845.36994062,0.00023,2]
[311077332,1704897047567,-2910.55810647,0.00023,2]
[311077334,1704897047578,-890.2,0.00023,2]
[311077345,1704897047670,-4527.7,0.00023,2]
[311077347,1704897047682,-2102.61019511,0.00023,2]
[311077349,1704897047693,-431.0,0.00023,2]
[311077366,1704897051558,1000.0,0.00022308,2]
[311077370,1704897122840,155.0,0.00022308,2]
[311077371,1704897124261,206.0,0.00022319,2]
[311077372,1704897126544,471.79,0.00020183,2]
[311077373,1704897126746,471.79,0.00022447,2]
[311077374,1704897132932,479.0337,0.00022401,2]
[311077375,1704897144818,256.11278579,0.00022308,2]
[311077376,1704897162952,203.4025,0.00022401,2]
[311077378,1704897207200,153.44,0.00022115,2]
[311077379,1704897207289,153.44,0.00022232,2]
[311077380,1704897207465,153.44,0.00022348,2]
[311077381,1704897207686,153.44,0.00022464,2]
[311077382,1704897247304,2000.0,0.00021874,2]
[311077383,1704897249601,172.75,0.00021853,2]
[311077384,1704897266408,159.0443517,0.00022481,2]
[311077385,1704897274852,275.06,0.00021829,2]
[311077386,1704897281271,189.18,0.00022037,2]
[311077387,1704897281524,189.18,0.00022255,2]
[311077388,1704897281759,189.18,0.00022473,2]
[311077389,1704897290783,7925.38343439,0.00021853,2]
[311077390,1704897306217,630.12,0.00022115,2]
[311077391,1704897306436,4402.99079688,0.00021853,2]
[311077392,1704897319076,1442.27,0.00021911,2]
[311077393,1704897324434,4402.99079688,0.00021853,2]
[311077394,1704897342459,914.42,0.00021743,2]
[311077395,1704897342562,2293.95820518,0.00021853,2]
[311077396,1704897360483,2293.95820518,0.00021853,2]
[311077397,1704897380472,2293.95820518,0.00021853,2]
[311077398,1704897396755,2293.95820518,0.00021853,2]
[311077399,1704897414763,2293.95820518,0.00021853,2]
[311077400,1704897432784,2293.95820518,0.00021853,2]
[311077401,1704897449156,2293.95820518,0.00021853,2]
[311077402,1704897464761,2293.95820518,0.00021853,2]
[311077403,1704897480798,2293.95820518,0.00021853,2]
[311077404,1704897482454,158.81,0.00021888,2]
[311077405,1704897502770,2293.95820518,0.00021853,2]
[311077406,1704897518267,176.55400827,0.00021853,2]
[311077407,1704897588876,453.96,0.000198,2]
[311077408,1704897589263,453.96,0.00022064,2]
[311077409,1704897643063,255.18,0.00021702,2]
[311077410,1704897656659,490.80408753,0.00022415,2]
[311077411,1704897657252,625.36631117,0.00022415,2]
[311077412,1704897678597,171.19,0.00021726,2]
[311077413,1704897692422,2000.0,0.00021726,2]
[311077414,1704897702251,376.63058056,0.000225,2]
[311077415,1704897706831,1090.87320742,0.000225,2]
[311077416,1704897720126,335.10316505,0.00022513,10]
[311077417,1704897723306,155.0,0.000225,2]
[311077418,1704897725686,205.0,0.00022412,2]
[311077419,1704897727213,2267.55348713,0.000225,2]
[311077420,1704897767219,2894.7471,0.00022414,2]
[311077421,1704897775331,909.06100618,0.000225,2]
[311077422,1704897776775,315.2004,0.00022414,2]
[311077423,1704897783391,1931.1376,0.00022414,2]
[311077424,1704897786965,155.0,0.000225,2]
[311077425,1704897831505,495.9,0.00021721,2]
[311077426,1704897847364,547.1955223,0.00022416,2]
[311077427,1704897847661,778.18393707,0.00022414,2]
[311077428,1704897848675,778.18393708,0.00022414,2]
[311077429,1704897853841,473.62078422,0.00022413,2]
[311077430,1704897875066,1079.94,0.00021714,2]
[311077431,1704897898369,177.96,0.00021712,2]
[311077433,1704897986424,1000.0,0.00022414,2]
[311077434,1704897997007,2607.54759185,0.000225,2]
[311077435,1704898025726,29983.0078,0.00022414,2]
[311077436,1704898030839,-473.62078422,0.00022501,2]
[311077437,1704898030866,-1432.74500403,0.00022505,2]
[311077438,1704898030892,-150.0,0.0002251,2]
[311077439,1704898030918,-33704.86475484,0.00022511,2]
[311077445,1704898038394,478.79608196,0.00022416,2]
[311077451,1704898096953,183.54,0.0002175,2]
[311077452,1704898101676,2760.0,0.00022313,2]
[311077453,1704898103381,473.62078422,0.00022511,2]
[311077454,1704898106802,172.75,0.0002175,2]
[311077455,1704898111036,2500.0,0.00022414,2]
[311077456,1704898117806,2000.0,0.0002175,2]
[311077457,1704898181888,473.62078422,0.00022511,2]
[311077458,1704898228675,408.56,0.00019915,2]
[311077459,1704898228897,408.56,0.00022179,2]
[311077504,1704898231472,-468.5699798,0.00022512,2]
[311077517,1704898231528,-531.4300202,0.00022512,2]
[311077520,1704898231538,-278.16208396,0.00022512,2]
[311077523,1704898231547,-222.17421729,0.00022512,2]
[311077526,1704898231559,-641.78023561,0.00022512,2]
[311077532,1704898231599,-210.58128074,0.00022512,2]
[311077534,1704898231608,-208.98658204,0.00022512,2]
[311077536,1704898231617,-301.02065151,0.00022512,2]
[311077538,1704898231627,-473.62078422,0.00022512,2]
[311077539,1704898231636,-220.16941943,0.00022513,2]
[311077540,1704898231646,-2400.58593455,0.00022513,2]
[311077541,1704898231655,-190.3673098,0.00022513,2]
[311077542,1704898231692,-632.54342518,0.00022513,2]
[311077543,1704898231703,-956.9078761,0.00022513,2]
[311077544,1704898231714,-339.95296193,0.00022513,2]
[311077545,1704898231726,-201.37883976,0.00022513,2]
[311077546,1704898231735,-134.16737653,0.00022514,2]
[311077547,1704898231750,-1851.25308844,0.00022514,2]
[311077548,1704898231776,-928.53687171,0.00022514,2]
[311077555,1704898237469,-326.45,0.00022514,2]
[311077556,1704898237529,-446.17102511,0.00022514,2]
[311077557,1704898237594,-25780.09326071,0.00022514,2]
[311077558,1704898237606,-32673.82822888,0.00022514,2]
[311077559,1704898237618,-45379.20046447,0.00022514,2]
[311077560,1704898237631,-429933.55399541,0.00022514,2]
[311077561,1704898237640,-4974.09345308,0.00022563,2]
[311077562,1704898237657,-1854.77544692,0.00022563,2]
[311077563,1704898237667,-153.44,0.00022581,2]
[311077564,1704898237676,-149.97325299,0.00022621,2]
[311077565,1704898237712,-350.01674701,0.00022621,2]
[311077566,1704898237722,-83005.3819,0.00022663,2]
[311077567,1704898237732,-28773.8771,0.00022663,2]
[311077568,1704898237741,-912.21094007,0.00022664,2]
[311077569,1704898237753,-481.70408771,0.00022664,2]
[311077570,1704898237772,-286.10711435,0.00022664,2]
[311077571,1704898237784,-1126.05915787,0.00022664,2]
[311077572,1704898237793,-189.18,0.00022691,2]
[311077573,1704898237803,-1079.94,0.00022693,2]
[311077574,1704898237813,-153.44,0.00022697,2]
[311077575,1704898237822,-2810.31621798,0.00022761,2]
[311077576,1704898237833,-865.87777986,0.00022762,2]
[311077577,1704898237842,-16414.43756888,0.00022764,2]
[311077578,1704898237854,-565.34466925,0.00022764,2]
[311077579,1704898237878,-7365.98698415,0.00022764,2]
[311077580,1704898237890,-280.0,0.00022764,2]
[311077581,1704898237902,-1631.5164132,0.00022764,2]
[311077582,1704898237913,-636.9005323,0.00022764,2]
[311077584,1704898237929,-49681.809,0.00022764,2]
[311077586,1704898237941,-3274.47470027,0.00022764,2]
[311077590,1704898237969,-5018.87825805,0.00022764,2]
[311077795,1704898239990,-3287.49459681,0.00022764,2]
[311077798,1704898240002,-1264.69160319,0.00022764,2]
[311077859,1704898240576,-900.19437332,0.00022764,2]
[311077861,1704898240585,-1420.24926294,0.00022764,2]
[311077863,1704898240595,-23049.30885603,0.00022765,2]
[311077865,1704898240605,-16124.92560397,0.00022766,2]
[311077867,1704898240614,-392.4644527,0.00022766,2]
[311077869,1704898240623,-499.78210232,0.00022769,2]
[311077871,1704898240633,-437.2662,0.00022785,2]
[311077873,1704898240642,-629.1722,0.00022788,2]
[311077875,1704898240651,-415.0032,0.00022788,2]
[311077877,1704898240661,-153.44,0.00022814,2]
[311077879,1704898240669,-200.0,0.00022816,2]
[311077881,1704898240679,-800.0,0.00022816,2]
[311077883,1704898240687,-200.0,0.00022816,2]
[311077885,1704898240697,-183.54,0.00022837,2]
[311077887,1704898240706,-720.47,0.00022838,2]
[311077889,1704898240715,-190.94965879,0.00022884,2]
[311077891,1704898240724,-562.17858949,0.00022884,2]
[311077893,1704898240733,-19755.0846,0.00022898,2]
[311077895,1704898240743,-2806.72838488,0.00022899,2]
[311077897,1704898240752,-64067.53904307,0.000229,2]
[311077899,1704898240762,-495.73424131,0.000229,2]
[311077901,1704898240771,-9345.65691444,0.000229,2]
[311077903,1704898240782,-3075.95126545,0.000229,2]
[311077905,1704898240792,-189.18,0.0002291,2]
[311077907,1704898240802,-153.44,0.0002293,2]
[311077909,1704898240812,-419.95,0.00022959,2]
[311077911,1704898240821,-155.32404279,0.00022994,2]
[311077913,1704898240830,-583.0,0.00022996,2]
[311077915,1704898240839,-361.98217794,0.00022996,2]
[311077917,1704898240849,-241.58690371,0.00022996,2]
[311077919,1704898240859,-189.58827229,0.00022996,2]
[311077921,1704898240868,-158.80579849,0.00022996,2]
[311077923,1704898240877,-522.07104133,0.00022996,2]
[311077925,1704898240887,-161.85788332,0.00022996,2]
[311077927,1704898240896,-195.40245811,0.00022996,2]
[311077929,1704898240906,-223.92574334,0.00022996,2]
[311077931,1704898240915,-360.0278767,0.00022996,2]
[311077933,1704898240925,-155.0190123,0.00022996,2]
[311077935,1704898240934,-251.99880636,0.00022996,2]
[311077937,1704898240944,-2301.96599868,0.00022996,2]
[311077939,1704898240953,-157.15051088,0.00022996,2]
[311077941,1704898240963,-301.66001693,0.00022996,2]
[311077943,1704898240972,-155.0,0.00022996,2]
[311077945,1704898240982,-843.00113502,0.00022996,2]
[311077947,1704898240991,-155.0,0.00022996,2]
[311077949,1704898241001,-546.57806182,0.00022996,2]
[311077951,1704898241010,-372.3247722,0.00022996,2]
[311077953,1704898241019,-155.03242496,0.00022996,2]
[311077955,1704898241030,-206.91186275,0.00022996,2]
[311077957,1704898241039,-213.26260169,0.00022996,2]
[311077959,1704898241049,-155.0,0.00022996,2]
[311077961,1704898241058,-251.79727683,0.00022996,2]
[311077963,1704898241068,-258.83583849,0.00022996,2]
[311077965,1704898241077,-513.70005074,0.00022996,2]
[311077967,1704898241087,-232.81085492,0.00022996,2]
[311077969,1704898241096,-323.634376,0.00022996,2]
[311077971,1704898241106,-157.39865583,0.00022996,2]
[311077973,1704898241115,-266.896202,0.00022996,2]
[311077975,1704898241125,-156.4406459,0.00022996,2]
[311077977,1704898241135,-322.97657694,0.00022996,2]
[311077979,1704898241144,-12960.1236206,0.00022996,2]
[311077981,1704898241154,-155.23446992,0.00022996,2]
[311077983,1704898241163,-199.14622771,0.00022996,2]
[311077985,1704898241172,-155.52034948,0.00022996,2]
[311077987,1704898241182,-317.68758824,0.00022996,2]
[311077989,1704898241191,-155.3862727,0.00022996,2]
[311077991,1704898241200,-243.40859199,0.00022996,2]
[311077993,1704898241210,-157.72401509,0.00022996,2]
[311077995,1704898241219,-233.76777463,0.00022996,2]
[311077997,1704898241228,-1922.43002243,0.00022996,2]
[311077999,1704898241238,-197.74295189,0.00022996,2]
[311078001,1704898241247,-1432.05814376,0.00022996,2]
[311078003,1704898241256,-4066.87594077,0.00022996,2]
[311078005,1704898241266,-207.83148372,0.00022996,2]
[311078007,1704898241275,-513.52521044,0.00022996,2]
[311078009,1704898241285,-200.8130963,0.00022996,2]
[311078011,1704898241295,-224.10858069,0.00022996,2]
[311078013,1704898241304,-3425.9123988,0.00022996,4]
[311078015,1704898241313,-155.55901181,0.00022996,2]
[311078017,1704898241322,-183.06289581,0.00022996,2]
[311078019,1704898241332,-155.0,0.00022996,2]
[311078021,1704898241341,-217.32566192,0.00022996,2]
[311078023,1704898241353,-221.20394002,0.00022996,2]
[311078025,1704898241364,-155.1313233,0.00022996,2]
[311078027,1704898241373,-155.0,0.00022996,2]
[311078029,1704898241382,-2554.84248271,0.00022996,2]
[311078030,1704898241391,-185.42771038,0.00022996,2]
[311078032,1704898241400,-1709.01281989,0.00022996,2]
[311078034,1704898241409,-156.17916202,0.00022996,2]
[311078036,1704898241418,-241.61161094,0.00022996,2]
[311078037,1704898241427,-155.0,0.00022996,2]
[311078040,1704898241438,-208.38724354,0.00022996,2]
[311078042,1704898241447,-2919.83036218,0.00022996,2]
[311078044,1704898241457,-330.25821039,0.00022996,2]
[311078045,1704898241467,-4618.23464796,0.00022996,2]
[311078047,1704898241476,-155.0,0.00022996,2]
[311078049,1704898241486,-259.86244091,0.00022996,2]
[311078052,1704898241496,-200.81745024,0.00022996,2]
[311078054,1704898241505,-336.69086329,0.00022996,2]
[311078056,1704898241514,-373.92735783,0.00022996,2]
[311078058,1704898241524,-232.45429526,0.00022996,2]
[311078060,1704898241536,-331.91038392,0.00022996,2]
[311078061,1704898241545,-156.1102291,0.00022998,2]
[311078063,1704898241554,-765.33424633,0.00022998,2]
[311078065,1704898241564,-285.26038722,0.00022998,2]
[311078067,1704898241573,-155.19889994,0.00022999,2]
[311078069,1704898241582,-2139.99838339,0.00022999,2]
[311078071,1704898241591,-7499.62114374,0.00022999,2]
[311078073,1704898241601,-2323.10367527,0.00022999,2]
[311078075,1704898241610,-159.81630443,0.00022999,2]
[311078077,1704898241619,-583.18327659,0.00022999,2]
[311078079,1704898241629,-155.31998547,0.00022999,2]
[311078081,1704898241637,-1400.71495857,0.00022999,2]
[311078083,1704898241647,-51414.0489999,0.00022999,2]
[311078085,1704898241655,-357.3326148,0.00022999,2]
[311078087,1704898241665,-8880.4165468,0.00022999,2]
[311078089,1704898241675,-70421.2061586,0.00022999,2]
[311078091,1704898241684,-17141.81352801,0.00023,2]
[311078094,1704898241698,-562.44851433,0.00023,2]
[311078096,1704898241709,-1258.45896066,0.00023,2]
[311078098,1704898241720,-981.33783082,0.00023,2]
[311078103,1704898241758,-353.15536203,0.00023,2]
[311078106,1704898241781,-386.19889246,0.00023,2]
[311078109,1704898241800,-1410.69300404,0.00023,2]
[311078174,1704898242450,-1605.93138325,0.00023,2]
[311078189,1704898242570,-17780.18259288,0.00023,2]
[311078226,1704898242913,-4445.2213684,0.00023,2]
[311078229,1704898242926,-1011.99388521,0.00023,2]
[311078235,1704898242983,-5312.44048448,0.00023,2]
[311078238,1704898242997,-6798.3512927,0.00023,2]
[311078240,1704898243010,-9690.07100944,0.00023,2]
[311078242,1704898243022,-585.03726834,0.00023,2]
[311078244,1704898243045,-1313.89,0.00023,2]
[311078246,1704898243058,-782.79757406,0.00023,2]
[311078249,1704898243080,-713.88516416,0.00023,2]
[311078252,1704898243093,-168351.37606107,0.00023,2]
[311078256,1704898243128,-946.40330995,0.00023,2]
[311078258,1704898243144,-1249.794715,0.00023,2]
[311078261,1704898243163,-1558.47389872,0.00023,2]
[311078263,1704898243176,-6032.33831657,0.00023,2]
[311078265,1704898243189,-473.22390086,0.00023,2]
[311078492,1704898245563,-473.62078422,0.00022999,2]
[311078493,1704898245572,-151265.11545983,0.00023,2]
[311078494,1704898245584,-4532.5,0.00023,2]
[311078495,1704898245596,-1870.235873,0.00023,2]
[311078496,1704898245622,-10540.98306016,0.00023,2]
[311078497,1704898245739,-715.04111596,0.00023,2]
[311078499,1704898245751,-3072.076,0.00023,2]
[311078501,1704898245762,-8821.54792656,0.00023,2]
[311078505,1704898245798,-450.41023532,0.00023,2]
[311078515,1704898245915,-3134.06245427,0.00023,2]
[311078516,1704898245926,-622.16658401,0.00023,2]
[311078517,1704898269764,843.8821,0.00022414,2]
[311078518,1704898284212,197.8166,0.00022414,2]
[311078519,1704898323267,1000.83,0.00022082,2]
[311078520,1704898385717,159.18,0.00022139,2]
[311078521,1704898423799,2177.61310651,0.0002,2]
[311078522,1704898423820,1482.43958659,0.0002,2]
[311078523,1704898468386,21462.27262228,0.00025,7]
[311078524,1704898541183,232.64514444,0.000229,6]
[311078525,1704898542195,167.46,0.00021935,2]
[311078526,1704898542421,167.46,0.00022301,2]
[311078527,1704898546174,232.6451444,0.0002489,9]
[311078528,1704898566503,2000.0,0.00021931,2]
[311078529,1704898585511,171.19,0.00021931,2]
[311078530,1704898713652,396.72,0.00021921,2]
[311078531,1704898742060,164.77,0.00022141,2]
[311078532,1704898748141,376.92,0.00020004,2]
[311078533,1704898748342,376.92,0.00022267,2]
[311078534,1704898801325,934.1,0.00021926,2]
[311078535,1704898804847,205.0,0.00021623,2]
[311078538,1704898997045,-473.62078422,0.00022522,2]
[311078539,1704898997063,-284.76927483,0.00022522,2]
[311078540,1704898997082,-159.18,0.00022523,2]
[311078541,1704898997102,-167.46,0.00022666,2]
[311078542,1704898997120,-205.5773,0.00022797,2]
[311078543,1704898997139,-1069.8738,0.00022797,2]
[311078544,1704898997163,-418.94657175,0.00022799,2]
[311078545,1704898997186,-1000.0,0.000228,2]
[311078546,1704898997207,-1000.0,0.000228,3]
[311078547,1704898997228,-1033.0,0.000228,2]
[311078548,1704898997248,-500.0,0.00022815,2]
[311078549,1704898997268,-200.0,0.00022815,2]
[311078550,1704898997290,-800.0,0.00022816,2]
[311078551,1704898997309,-500.0,0.00022816,2]
[311078552,1704898997329,-200.0,0.00022816,2]
[311078553,1704898997351,-490.12205195,0.00022895,2]
[311078554,1704898997371,-2136.08960768,0.00022896,2]
[311078555,1704898997621,-245000.0,0.00022897,2]
[311078556,1704898997643,-730.01,0.00022898,2]
[311078557,1704898997665,-735.54,0.00022898,2]
[311078558,1704898997686,-722.75,0.00022898,2]
[311078559,1704898997706,-311.15,0.00022898,2]
[311078560,1704898997736,-719.86,0.00022898,2]
[311078561,1704898997757,-69809.395,0.00022899,2]
[311078562,1704898997777,-733.59,0.00022899,2]
[311078563,1704898997798,-718.08,0.00022899,2]
[311078564,1704898997820,-709.8,0.00022899,2]
[311078565,1704898997841,-1483.46652546,0.00022899,2]
[311078566,1704898997863,-158.76807407,0.00022899,2]
[311078567,1704898997884,-158.768074,0.00022899,2]
[311078568,1704898997906,-158.768074,0.00022899,2]
[311078569,1704898997930,-158.768074,0.00022899,2]
[311078570,1704898997951,-158.768074,0.00022899,2]
[311078571,1704898997971,-158.768074,0.00022899,2]
[311078572,1704898997991,-158.768074,0.000229,2]
[311078573,1704898998012,-158.768074,0.000229,2]
[311078574,1704898998033,-158.768074,0.000229,2]
[311078575,1704898998054,-158.768074,0.000229,2]
[311078576,1704898998076,-158.768074,0.000229,2]
[311078577,1704898998097,-158.768074,0.000229,2]
[311078578,1704898998119,-158.768074,0.000229,2]
[311078579,1704898998141,-1000.0,0.000229,2]
[311078580,1704898998165,-257.69894567,0.000229,2]
[311078581,1704898998186,-751.4932486,0.000229,2]
[311078582,1704898998207,-2050.63417696,0.000229,2]
[311078583,1704898998230,-934.1,0.00022904,2]
[311078584,1704898998253,-159.18,0.00022908,2]
[311078585,1704898998274,-10581.30981349,0.0002298,2]
[311078586,1704898998294,-278.26851482,0.00022997,2]
[311078587,1704898998315,-171.48545757,0.00022997,2]
[311078588,1704898998337,-592483.91531234,0.00022997,2]
[311078589,1704898998358,-49681.809,0.00022998,2]
[311078590,1704898998379,-629.0,0.00022999,2]
[311078591,1704898998402,-161.881377,0.00022999,2]
[311078592,1704898998427,-155.47721802,0.00022999,2]
[311078593,1704898998448,-73077.2890993,0.00022999,2]
[311078594,1704898998470,-4013.4059885,0.00022999,2]
[311078595,1704898998490,-9215.3600132,0.00022999,2]
[311078596,1704898998512,-713.24,0.00023,2]
[311078597,1704898998533,-1150342.46841735,0.00023,2]
[311078598,1704898998554,-493.17943564,0.00023,2]
[311078599,1704898998577,-2690419.08268164,0.00023,2]
[311078600,1704898998598,-722.17,0.00023,2]
[311078601,1704898998620,-255.31,0.00023,2]
[311078602,1704898998640,-200.0,0.00023,2]
[311078603,1704898998660,-356.04016405,0.00023,2]
[311078604,1704898998687,-402.38536975,0.00023,2]
[311078605,1704898998712,-1322759.88350901,0.00023,2]
[311078606,1704898999431,200.0,0.00022816,2]
[311078607,1704899000528,2000.0,0.00022206,2]
[311078608,1704899004177,564.0,0.00022999,2]
[311078627,1704899056551,5977.4644081,0.00022999,2]
[311078633,1704899074851,47400.9581835,0.00022999,2]
[311078634,1704899103818,300.0,0.00025,28]
[311078635,1704899107130,2603.2614479,0.00022999,2]
[311078636,1704899122921,245000.0,0.00022797,2]
[311078637,1704899164328,206.0,0.00022881,2]
[311078638,1704899197760,339.22,0.00021976,2]
[311078640,1704899210033,49066.76233963,0.00022998,2]
[311078651,1704899432050,-189.84618322,0.00022899,2]
[311078652,1704899432060,-87.76696485,0.000229,2]
[311078653,1704899432077,-62.23303515,0.000229,2]
[311078654,1704899432086,-386.76696485,0.00022998,2]
[311078655,1704899432127,-401.4145222,0.00022998,2]
[311078656,1704899432139,-1638.91926737,0.00022998,2]
[311078664,1704899437739,-3410.58645585,0.00022998,2]
[311078665,1704899437800,-6740.0255741,0.00022998,2]
[311078666,1704899437810,-22981.55704468,0.00022999,2]
[311078667,1704899437821,-3830.84647511,0.00022999,2]
[311079544,1704899454917,-24431.87670191,0.00022999,2]
[311079545,1704899454928,-4756.9510295,0.00022999,2]
[311079546,1704899454938,-1011.77544843,0.00023015,3]
[311079547,1704899454950,-2001.407535,0.00023015,2]
[311079548,1704899454960,-717.11,0.00023016,2]
[311079549,1704899454970,-723.66,0.00023016,2]
[311079550,1704899454981,-1246.21146446,0.00023029,2]
[311079551,1704899454991,-167.46,0.00023032,2]
[311079552,1704899455002,-153.44,0.00023046,2]
[311079553,1704899455012,-194.02,0.00023078,2]
[311079554,1704899455023,-153.44,0.00023163,2]
[311079555,1704899455032,-150.0,0.00023174,2]
[311079556,1704899455043,-194.02,0.00023193,2]
[311079557,1704899455054,-7322.51593062,0.00023196,2]
[311079558,1704899455067,-5000.0,0.00023196,2]
[311079559,1704899455084,-7896.07055252,0.00023221,2]
[311079561,1704899455095,-153.44,0.00023279,2]
[311079562,1704899455106,-194.02,0.00023308,2]
[311079563,1704899455117,-153.44,0.00023395,2]
[311079564,1704899455130,-167.46,0.00023397,2]
[311079565,1704899455140,-194.02,0.00023423,2]
[311079566,1704899455151,-153.44,0.00023512,2]
[311079567,1704899455162,-194.02,0.00023537,2]
[311079568,1704899455173,-153.44,0.00023628,2]
[311079569,1704899455182,-194.02,0.00023652,2]
[311079570,1704899455193,-2806.72838479,0.00023672,2]
[311079571,1704899455203,-172.75,0.00023715,2]
[311079572,1704899455214,-153.44,0.00023745,2]
[311079573,1704899455224,-167.46,0.00023763,2]
[311079574,1704899455234,-194.02,0.00023767,2]
[311079575,1704899455250,-153.44,0.00023861,2]
[311079576,1704899455260,-194.02,0.00023882,2]
[311079577,1704899455271,-682.62,0.000239,2]
[311079578,1704899455281,-183.54,0.00023925,2]
[311079579,1704899455291,-153.44,0.00023977,2]
[311079580,1704899455302,-194.02,0.00023997,2]